[Event "35th Roquetas Festival 2024"]
[Site "Roquetas de Mar"]
[Date "2024.01.04"]
[Round "4.21"]
[White "Fernandez, Maria Florencia"]
[Black "Bru Rullo, Llatzer"]
[Result "1/2-1/2"]
[ECO "D20"]
[WhiteElo "2074"]
[BlackElo "2278"]
[Annotator "RC"]
[PlyCount "121"]
[EventDate "2024.01.02"]
[EventType "swiss"]
[EventCountry "ESP"]
[SourceTitle "playchess.com"]
[Source "ChessBase"]
[SourceQuality "1"]
[TimeControl "5400+30"]

1. d4 {[%emt 0:05:42]} d5 {[%emt 0:00:05]} 2. c4 {[%emt 0:00:10]} dxc4 {[%emt 0:00:07]} 3. e3 {[%emt 0:01:20]} c5 {[%emt 0:02:20]} 4. Bxc4 {[%emt 0:00:35]} cxd4 {[%emt 0:00:10]} 5. exd4 {[%emt 0:00:07]} Nf6 {[%emt 0:00:27]} 6. Nf3 {[%emt 0:01:04]} e6 {[%emt 0:00:13]} 7. O-O {[%emt 0:00:48]} Be7 {[%emt 0:00:07]} 8. Nc3 {[%emt 0:01:03]} O-O {[%emt 0:00:30]} 9. Qe2 {[%emt 0:02:00]} Nc6 {[%emt 0:00:14]} 10. Rd1 {[%emt 0:00:15]} Na5 {[%emt 0:00:04]} 11. Bd3 {[%emt 0:01:35]} b6 {[%emt 0:00:11]} 12. Bf4 {[%emt 0:06:06]} Bb7 {[%emt 0:02:27]} 13. Rac1 {[%emt 0:02:25]} Rc8 {[%emt 0:19:18]} 14. Be5 {[%emt 0:11:27]} Nd5 {[%emt 0:09:22]} 15. Qe4 {[%emt 0:07:37]} g6 {[%emt 0:15:03]} 16. Qe2 {[%emt 0:09:35]} Nxc3 {[%emt 0:06:38]} 17. bxc3 {[%emt 0:05:30]} Bd6 {[%emt 0:06:03]} 18. Be4 {[%emt 0:10:50]} Bxe4 {[%emt 0:03:23]} 19. Qxe4 {[%emt 0:00:04]} Nc4 {[%emt 0:06:07]} 20. h4 {[%emt 0:03:42]} Ba3 {[%emt 0:06:39]} 21. Rb1 {[%emt 0:05:57]} f6 {[%emt 0:05:31]} 22. Bf4 {[%emt 0:01:47]} Qd5 {[%emt 0:00:22]} 23. Qe2 {[%emt 0:02:55]} Rc6 {[%emt 0:00:39]} 24. Rb3 {[%emt 0:04:08]} Bd6 {[%emt 0:03:21]} 25. Bh6 {[%emt 0:01:33]} Re8 {[%emt 0:00:05]} 26. Nd2 {[%emt 0:02:18]} Nxd2 {[%emt 0:01:28]} 27. Rxd2 {[%emt 0:00:24]} Rec8 {[%emt 0:00:57]} 28. Rd3 {[%emt 0:01:03]} Kf7 {[%emt 0:01:46]} 29. Bd2 {[%emt 0:02:24]} Qh5 {[%emt 0:01:30]} 30. Rf3 {[%emt 0:04:28]} Qd5 {[%emt 0:00:01]} 31. Bg5 {[%emt 0:02:47]} f5 {[%emt 0:01:14]} 32. h5 {[%emt 0:00:54]} Rg8 {[%emt 0:07:40]} 33. Rh3 {[%emt 0:00:37]} h6 {[%emt 0:00:45]} 34. Bc1 {[%emt 0:02:39]} gxh5 {[%emt 0:00:56]} 35. Qxh5+ {[%emt 0:00:05]} Rg6 {[%emt 0:00:04]} 36. Rf3 {[%emt 0:01:26]} Rc8 {[%emt 0:00:57]} 37. g3 {[%emt 0:00:57]} Qe4 {[%emt 0:00:54]} 38. Kh2 {[%emt 0:00:34]} Qg4 {[%emt 0:01:00]} 39. Qxg4 {[%emt 0:00:25]} Rxg4 {[%emt 0:00:01]} 40. Kh3 {[%emt 0:00:42]} h5 {[%emt 0:00:14]} 41. Bf4 {[%emt 0:00:26]} Bxf4 {[%emt 0:00:43]} 42. Rxf4 {[%emt 0:00:03]} Kf6 {[%emt 0:01:10]} 43. Ra3 {[%emt 0:00:23]} Rc7 {[%emt 0:00:31]} 44. Kg2 {[%emt 0:01:01]} Rxf4 {[%emt 0:00:22]} 45. gxf4 {[%emt 0:00:04]} Rg7+ {[%emt 0:00:09]} 46. Kh3 {[%emt 0:00:43]} Rg4 {[%emt 0:00:13]} 47. Rxa7 {[%emt 0:00:12]} Rxf4 {[%emt 0:00:07]} 48. Kg3 {[%emt 0:00:25]} Rg4+ {[%emt 0:00:43]} 49. Kh3 {[%emt 0:00:36]} Rf4 {[%emt 0:00:02]} 50. Kg3 {[%emt 0:00:04]} Rg4+ {[%emt 0:00:05]} 51. Kh3 {[%emt 0:00:04]} Rg1 {[%emt 0:00:09]} 52. Ra3 {[%emt 0:01:26]} Rc1 {[%emt 0:00:28]} 53. Rb3 {[%emt 0:00:23]} Kg5 {[%emt 0:01:13]} 54. Kg2 {[%emt 0:00:13]} b5 {[%emt 0:00:58]} 55. Rxb5 {[%emt 0:00:59]} Rxc3 {[%emt 0:00:04]} 56. Rb6 {[%emt 0:00:50]} Rd3 {[%emt 0:00:59]} 57. Rxe6 {[%emt 0:00:17]} Rxd4 {[%emt 0:00:04]} 58. Re3 {[%emt 0:00:32]} Rd2 {[%emt 0:00:30]} 59. Rg3+ {[%emt 0:00:17]} Kf6 {[%emt 0:00:34]} 60. Rh3 {[%emt 0:00:09]} Rxa2 {[%emt 0:00:15]} 61. Rxh5 {[%emt 0:00:35]} 1/2-1/2

[Event "35th Roquetas Festival 2024"]
[Site "Roquetas de Mar"]
[Date "2024.01.04"]
[Round "4.22"]
[White "Iglesias Ferreira, Andres"]
[Black "Deusa Ballesteros, Lucas"]
[Result "1-0"]
[ECO "C07"]
[WhiteElo "2278"]
[BlackElo "1887"]
[Annotator "RC"]
[PlyCount "129"]
[EventDate "2024.01.02"]
[EventType "swiss"]
[EventCountry "ESP"]
[SourceTitle "playchess.com"]
[Source "ChessBase"]
[SourceQuality "1"]
[TimeControl "5400+30"]

1. e4 {[%emt 0:02:01]} e6 {[%emt 0:00:13]} 2. d4 {[%emt 0:00:13]} d5 {[%emt 0:00:07]} 3. Nd2 {[%emt 0:00:21]} c5 {[%emt 0:00:41]} 4. Ngf3 {[%emt 0:00:32]} cxd4 {[%emt 0:01:02]} 5. exd5 {[%emt 0:00:13]} Qxd5 {[%emt 0:01:20]} 6. Bc4 {[%emt 0:00:16]} Qd8 {[%emt 0:01:08]} 7. O-O {[%emt 0:02:04]} Nf6 {[%emt 0:02:45]} 8. Nb3 {[%emt 0:01:03]} Nc6 {[%emt 0:00:41]} 9. Qe2 {[%emt 0:04:13]} Be7 {[%emt 0:11:34]} 10. Rd1 {[%emt 0:00:56]} O-O {[%emt 0:06:46]} 11. Nbxd4 {[%emt 0:01:05]} Nxd4 {[%emt 0:01:28]} 12. Rxd4 {[%emt 0:01:13]} Qb6 {[%emt 0:04:28]} 13. c3 {[%emt 0:01:28]} Bd7 {[%emt 0:07:55]} 14. Ne5 {[%emt 0:04:39]} Rad8 {[%emt 0:05:20]} 15. Bg5 {[%emt 0:05:40]} Bc8 {[%emt 0:09:15]} 16. Rh4 {[%emt 0:03:51]} Qd6 {[%emt 0:07:50]} 17. Bd3 {[%emt 0:07:27]} g6 {[%emt 0:03:40]} 18. Re1 {[%emt 0:06:26]} Nd5 {[%emt 0:08:22]} 19. Qg4 {[%emt 0:05:44]} f5 {[%emt 0:07:54]} 20. Qg3 {[%emt 0:03:03]} Bxg5 {[%emt 0:01:49]} 21. Qxg5 {[%emt 0:00:13]} Qe7 {[%emt 0:01:43]} 22. Qg3 {[%emt 0:00:43]} Qg7 {[%emt 0:03:16]} 23. Bc4 {[%emt 0:03:33]} Nf6 {[%emt 0:03:05]} 24. Nd3 {[%emt 0:03:25]} Ne4 {[%emt 0:01:21]} 25. Qe3 {[%emt 0:00:53]} Qc7 {[%emt 0:02:18]} 26. Bb3 {[%emt 0:03:11]} Qd6 {[%emt 0:01:44]} 27. Rd1 {[%emt 0:00:36]} Qb6 {[%emt 0:01:55]} 28. Qxb6 {[%emt 0:00:30]} axb6 {[%emt 0:00:02]} 29. f3 {[%emt 0:00:21]} Nc5 {[%emt 0:01:07]} 30. Nxc5 {[%emt 0:01:57]} Rxd1+ {[%emt 0:00:18]} 31. Bxd1 {[%emt 0:00:08]} bxc5 {[%emt 0:00:03]} 32. Ra4 {[%emt 0:01:36]} Bd7 {[%emt 0:01:38]} 33. Ra5 {[%emt 0:01:02]} Rc8 {[%emt 0:00:16]} 34. Kf2 {[%emt 0:00:27]} Kf7 {[%emt 0:00:56]} 35. f4 {[%emt 0:00:12]} Kf6 {[%emt 0:00:55]} 36. Bf3 {[%emt 0:00:15]} Rc7 {[%emt 0:00:31]} 37. Ra7 {[%emt 0:00:18]} Bc8 {[%emt 0:00:20]} 38. c4 {[%emt 0:02:09]} h6 {[%emt 0:00:49]} 39. a4 {[%emt 0:01:43]} e5 {[%emt 0:01:23]} 40. fxe5+ {[%emt 0:03:08]} Kxe5 {[%emt 0:00:07]} 41. Ra5 {[%emt 0:00:06]} Kd4 {[%emt 0:01:58]} 42. Bd5 {[%emt 0:00:16]} g5 {[%emt 0:00:49]} 43. b3 {[%emt 0:01:13]} Ke5 {[%emt 0:00:35]} 44. Rb5 {[%emt 0:00:21]} Kd4 {[%emt 0:00:25]} 45. Rb6 {[%emt 0:00:16]} Kc3 {[%emt 0:00:28]} 46. g3 {[%emt 0:01:03]} Rh7 {[%emt 0:00:36]} 47. h4 {[%emt 0:00:51]} gxh4 {[%emt 0:00:28]} 48. gxh4 {[%emt 0:00:06]} h5 {[%emt 0:00:25]} 49. Bf3 {[%emt 0:00:14]} f4 {[%emt 0:00:36]} 50. Rb5 {[%emt 0:00:44]} Kd4 {[%emt 0:00:18]} 51. a5 {[%emt 0:00:23]} Rc7 {[%emt 0:00:45]} 52. Bxh5 {[%emt 0:03:01]} Rh7 {[%emt 0:00:05]} 53. Bf3 {[%emt 0:00:10]} Rxh4 {[%emt 0:00:26]} 54. Bxb7 {[%emt 0:00:12]} Bxb7 {[%emt 0:00:41]} 55. Rxb7 {[%emt 0:00:02]} Ke4 {[%emt 0:00:49]} 56. Re7+ {[%emt 0:02:43]} Kd4 {[%emt 0:00:12]} 57. a6 {[%emt 0:00:29]} Rh2+ {[%emt 0:00:27]} 58. Kf3 {[%emt 0:00:12]} Rh3+ {[%emt 0:00:23]} 59. Kxf4 {[%emt 0:00:07]} Rxb3 {[%emt 0:00:06]} 60. Re4+ {[%emt 0:00:03]} Kc3 {[%emt 0:00:15]} 61. Re3+ {[%emt 0:00:06]} Kxc4 {[%emt 0:00:12]} 62. Rxb3 {[%emt 0:00:05]} Kxb3 {[%emt 0:00:09]} 63. a7 {[%emt 0:00:04]} c4 {[%emt 0:00:05]} 64. a8=Q {[%emt 0:00:04]} c3 {[%emt 0:00:05]} 65. Ke4 1-0

[Event "35th Roquetas Festival 2024"]
[Site "Roquetas de Mar"]
[Date "2024.01.04"]
[Round "4.23"]
[White "Garijo Perez, Hugo"]
[Black "Guillen Martinez, Hugo"]
[Result "1-0"]
[ECO "B09"]
[WhiteElo "2270"]
[BlackElo "1859"]
[Annotator "RC"]
[PlyCount "73"]
[EventDate "2024.01.02"]
[EventType "swiss"]
[EventCountry "ESP"]
[SourceTitle "playchess.com"]
[Source "ChessBase"]
[SourceQuality "1"]
[TimeControl "5400+30"]

1. e4 {[%emt 0:00:03]} d6 {[%emt 0:00:25]} 2. d4 {[%emt 0:00:05]} Nf6 {[%emt 0:00:10]} 3. Nc3 {[%emt 0:00:10]} g6 {[%emt 0:00:33]} 4. f4 {[%emt 0:00:06]} Bg7 {[%emt 0:00:33]} 5. Nf3 {[%emt 0:00:08]} O-O {[%emt 0:00:10]} 6. Be3 {[%emt 0:05:08]} c5 {[%emt 0:12:06]} 7. dxc5 {[%emt 0:01:24]} Qa5 {[%emt 0:01:55]} 8. Bd3 {[%emt 0:00:19]} dxc5 {[%emt 0:00:53]} 9. O-O {[%emt 0:00:07]} Nc6 {[%emt 0:00:44]} 10. h3 {[%emt 0:05:02]} Rd8 {[%emt 0:01:06]} 11. Qe1 {[%emt 0:02:25]} Nd4 {[%emt 0:06:12]} 12. e5 {[%emt 0:00:40]} Ne8 {[%emt 0:00:46]} 13. Qf2 {[%emt 0:00:48]} Nxf3+ {[%emt 0:02:05]} 14. Qxf3 {[%emt 0:00:29]} f6 {[%emt 0:11:50]} 15. Ne4 {[%emt 0:05:34]} Qc7 {[%emt 0:05:16]} 16. Bxc5 {[%emt 0:15:12]} f5 {[%emt 0:02:15]} 17. Ba3 {[%emt 0:08:17]} fxe4 {[%emt 0:01:13]} 18. Bxe4 {[%emt 0:00:20]} e6 {[%emt 0:03:23]} 19. h4 {[%emt 0:03:15]} Bf8 {[%emt 0:04:34]} 20. Bxf8 {[%emt 0:01:45]} Kxf8 {[%emt 0:00:08]} 21. h5 {[%emt 0:00:12]} Kg7 {[%emt 0:20:19]} 22. hxg6 {[%emt 0:01:38]} hxg6 {[%emt 0:00:07]} 23. Qg4 {[%emt 0:00:32]} Qf7 {[%emt 0:00:11]} 24. Rad1 {[%emt 0:09:16]} Bd7 {[%emt 0:03:23]} 25. Qg5 {[%emt 0:01:02]} Nc7 {[%emt 0:02:02]} 26. Rf3 {[%emt 0:02:46]} Nd5 {[%emt 0:06:40]} 27. c4 {[%emt 0:01:05]} Ne7 {[%emt 0:00:26]} 28. Rh3 {[%emt 0:05:29]} Kg8 {[%emt 0:00:22]} 29. Rhd3 {[%emt 0:01:20]} Nf5 {[%emt 0:01:16]} 30. g4 {[%emt 0:00:15]} Kf8 {[%emt 0:00:57]} 31. gxf5 {[%emt 0:00:41]} gxf5 {[%emt 0:00:47]} 32. Bxb7 {[%emt 0:00:24]} Rab8 {[%emt 0:00:22]} 33. Bc6 {[%emt 0:00:15]} Bxc6 {[%emt 0:01:44]} 34. Rxd8+ {[%emt 0:00:06]} Rxd8 {[%emt 0:00:06]} 35. Rxd8+ {[%emt 0:00:09]} Be8 {[%emt 0:00:30]} 36. c5 {[%emt 0:00:23]} a5 {[%emt 0:00:38]} 37. Qf6 {[%emt 0:00:59]} 1-0

[Event "35th Roquetas Festival 2024"]
[Site "Roquetas de Mar"]
[Date "2024.01.04"]
[Round "4.24"]
[White "Gomez Arce, Alejandro"]
[Black "Domene Mulyukov, Alexander"]
[Result "1-0"]
[ECO "B47"]
[WhiteElo "2074"]
[BlackElo "2266"]
[Annotator "RC"]
[PlyCount "86"]
[EventDate "2024.01.02"]
[EventType "swiss"]
[EventCountry "ESP"]
[SourceTitle "playchess.com"]
[Source "ChessBase"]
[SourceQuality "1"]
[TimeControl "5400+30"]

1. e4 {[%emt 0:02:36]} c5 {[%emt 0:01:14]} 2. Nf3 {[%emt 0:00:14]} e6 {[%emt 0:00:09]} 3. d4 {[%emt 0:00:39]} cxd4 {[%emt 0:00:06]} 4. Nxd4 {[%emt 0:00:08]} Nc6 {[%emt 0:00:05]} 5. Nc3 {[%emt 0:00:08]} Qc7 {[%emt 0:00:05]} 6. Qd3 {[%emt 0:01:28]} a6 {[%emt 0:02:44]} 7. Nxc6 {[%emt 0:00:21]} bxc6 {[%emt 0:04:21]} 8. Qg3 {[%emt 0:00:14]} Qxg3 {[%emt 0:05:46]} 9. hxg3 {[%emt 0:00:08]} d5 {[%emt 0:00:07]} 10. Bd3 {[%emt 0:06:22]} Nf6 {[%emt 0:01:34]} 11. f3 {[%emt 0:04:26]} Nd7 {[%emt 0:09:45]} 12. Na4 {[%emt 0:14:36]} Bd6 {[%emt 0:09:58]} 13. Kf2 {[%emt 0:02:10]} Rb8 {[%emt 0:02:59]} 14. b3 {[%emt 0:05:12]} Nc5 {[%emt 0:15:46]} 15. Nxc5 {[%emt 0:05:28]} Bxc5+ {[%emt 0:00:09]} 16. Be3 {[%emt 0:00:07]} Bb6 {[%emt 0:06:24]} 17. c4 {[%emt 0:14:05]} d4 {[%emt 0:07:16]} 18. Bf4 {[%emt 0:00:12]} Ra8 {[%emt 0:00:10]} 19. Bd6 {[%emt 0:04:50]} c5 {[%emt 0:24:32]} 20. Rh5 {[%emt 0:03:20]} f6 {[%emt 0:02:52]} 21. e5 {[%emt 0:03:20]} f5 {[%emt 0:00:31]} 22. Rah1 {[%emt 0:00:53]} h6 {[%emt 0:01:42]} 23. g4 {[%emt 0:02:09]} Kf7 {[%emt 0:03:10]} 24. gxf5 {[%emt 0:10:29]} exf5 {[%emt 0:00:08]} 25. Bxf5 {[%emt 0:01:03]} g6 {[%emt 0:00:38]} 26. Be4 {[%emt 0:00:15]} gxh5 {[%emt 0:00:45]} 27. Bxa8 {[%emt 0:00:01]} Bf5 {[%emt 0:00:33]} 28. Bd5+ {[%emt 0:00:56]} Kg6 {[%emt 0:00:01]} 29. e6 {[%emt 0:12:07]} d3 {[%emt 0:00:28]} 30. e7 {[%emt 0:01:42]} d2 {[%emt 0:00:34]} 31. Rd1 {[%emt 0:01:13]} Ba5 {[%emt 0:00:20]} 32. Bxc5 {[%emt 0:00:33]} Bc2 {[%emt 0:01:02]} 33. Be4+ {[%emt 0:00:05]} Bxe4 {[%emt 0:00:05]} 34. fxe4 {[%emt 0:00:03]} Bc3 {[%emt 0:00:31]} 35. Ke3 {[%emt 0:00:41]} a5 {[%emt 0:00:45]} 36. Kd3 {[%emt 0:01:09]} Bb4 {[%emt 0:00:06]} 37. Bxb4 {[%emt 0:00:38]} axb4 {[%emt 0:00:02]} 38. Rxd2 {[%emt 0:00:03]} Re8 {[%emt 0:00:01]} 39. c5 {[%emt 0:00:55]} Rxe7 {[%emt 0:00:05]} 40. Rf2 {[%emt 0:00:12]} Kg5 {[%emt 0:00:27]} 41. Kd4 {[%emt 0:00:16]} Kg4 {[%emt 0:00:05]} 42. c6 {[%emt 0:00:36]} Kg3 {[%emt 0:00:05]} 43. Rc2 {[%emt 0:00:16]} Kf4 1-0

[Event "35th Roquetas Festival 2024"]
[Site "Roquetas de Mar"]
[Date "2024.01.04"]
[Round "4.25"]
[White "Revaliente Montoya, Ciro"]
[Black "Jimenez Freniche, David"]
[Result "1-0"]
[ECO "C10"]
[WhiteElo "2263"]
[BlackElo "1849"]
[Annotator "RC"]
[PlyCount "61"]
[EventDate "2024.01.02"]
[EventType "swiss"]
[EventCountry "ESP"]
[SourceTitle "playchess.com"]
[Source "ChessBase"]
[SourceQuality "1"]
[TimeControl "5400+30"]

1. e4 {[%emt 0:04:20]} e6 {[%emt 0:00:00]} 2. d4 {[%emt 0:00:11]} d5 {[%emt 0:00:02]} 3. Nc3 {[%emt 0:01:51]} dxe4 {[%emt 0:00:08]} 4. Nxe4 {[%emt 0:00:29]} Nd7 {[%emt 0:00:14]} 5. Bd3 {[%emt 0:00:55]} Ngf6 {[%emt 0:00:11]} 6. Qe2 {[%emt 0:00:23]} c5 {[%emt 0:00:48]} 7. Nxf6+ {[%emt 0:13:51]} Nxf6 {[%emt 0:01:06]} 8. dxc5 {[%emt 0:00:10]} Bxc5 {[%emt 0:01:14]} 9. Bg5 {[%emt 0:01:35]} Qa5+ {[%emt 0:12:23]} 10. Bd2 {[%emt 0:02:43]} Qb6 {[%emt 0:00:30]} 11. O-O-O {[%emt 0:02:47]} Bxf2 {[%emt 0:10:28]} 12. Nf3 {[%emt 0:04:24]} Bc5 {[%emt 0:18:49]} 13. Rhf1 {[%emt 0:14:44]} Bd7 {[%emt 0:29:17]} 14. Ne5 {[%emt 0:02:17]} Rf8 {[%emt 0:04:42]} 15. g4 {[%emt 0:10:29]} Bd4 {[%emt 0:05:13]} 16. Nc4 {[%emt 0:01:18]} Qc6 {[%emt 0:02:07]} 17. Bb4 {[%emt 0:05:45]} Bc5 {[%emt 0:02:50]} 18. Ne5 {[%emt 0:00:53]} Qb6 {[%emt 0:01:05]} 19. Nxd7 {[%emt 0:08:57]} Nxd7 20. Bb5 {[%emt 0:00:15]} O-O-O {[%emt 0:02:34]} 21. Qc4 {[%emt 0:01:02]} Kb8 {[%emt 0:03:10]} 22. Rxd7 {[%emt 0:01:21]} Bxb4 {[%emt 0:02:25]} 23. Qxb4 {[%emt 0:01:55]} Rxd7 {[%emt 0:00:49]} 24. Qxf8+ {[%emt 0:00:06]} Rd8 {[%emt 0:00:09]} 25. Qe7 {[%emt 0:02:38]} Qe3+ {[%emt 0:01:02]} 26. Kb1 {[%emt 0:00:15]} Qd2 {[%emt 0:01:15]} 27. a3 {[%emt 0:00:53]} a6 {[%emt 0:00:43]} 28. Rxf7 {[%emt 0:00:43]} Qd5 {[%emt 0:00:41]} 29. Bc6 {[%emt 0:01:30]} Qd1+ {[%emt 0:00:32]} 30. Ka2 {[%emt 0:00:05]} Rd7 {[%emt 0:00:14]} 31. Qxd7 {[%emt 0:00:12]} 1-0

[Event "35th Roquetas Festival 2024"]
[Site "Roquetas de Mar"]
[Date "2024.01.04"]
[Round "4.26"]
[White "Castillo Rodriguez, Angel Luis"]
[Black "Serrano Almendros, Angel"]
[Result "1/2-1/2"]
[ECO "B30"]
[WhiteElo "2055"]
[BlackElo "2250"]
[Annotator "RC"]
[PlyCount "125"]
[EventDate "2024.01.02"]
[EventType "swiss"]
[EventCountry "ESP"]
[SourceTitle "playchess.com"]
[Source "ChessBase"]
[SourceQuality "1"]
[TimeControl "5400+30"]

1. e4 {[%emt 0:04:18]} c5 {[%emt 0:00:03]} 2. Nf3 {[%emt 0:00:23]} Nc6 {[%emt 0:00:04]} 3. Bb5 {[%emt 0:00:13]} e6 {[%emt 0:00:02]} 4. O-O {[%emt 0:00:28]} Nge7 {[%emt 0:00:02]} 5. c3 {[%emt 0:00:10]} a6 {[%emt 0:00:06]} 6. Ba4 {[%emt 0:00:06]} b5 {[%emt 0:00:30]} 7. Bc2 {[%emt 0:00:09]} Bb7 {[%emt 0:01:02]} 8. Re1 {[%emt 0:00:11]} Ng6 {[%emt 0:00:22]} 9. d4 {[%emt 0:00:47]} cxd4 {[%emt 0:00:46]} 10. cxd4 {[%emt 0:00:08]} Nb4 {[%emt 0:03:04]} 11. Bb3 {[%emt 0:00:40]} d5 {[%emt 0:01:15]} 12. e5 {[%emt 0:00:13]} Be7 {[%emt 0:02:03]} 13. Nc3 {[%emt 0:02:46]} O-O {[%emt 0:00:48]} 14. Ne2 {[%emt 0:27:26]} Rc8 {[%emt 0:03:17]} 15. a3 {[%emt 0:02:03]} Nc6 {[%emt 0:00:04]} 16. Bc2 {[%emt 0:06:43]} Na5 {[%emt 0:03:59]} 17. b3 {[%emt 0:06:24]} Qb6 {[%emt 0:05:55]} 18. Qd3 {[%emt 0:04:21]} Rc7 {[%emt 0:04:03]} 19. h4 {[%emt 0:04:58]} Rfc8 {[%emt 0:00:50]} 20. Ra2 {[%emt 0:03:31]} b4 {[%emt 0:13:13]} 21. h5 {[%emt 0:04:54]} Nf8 {[%emt 0:00:15]} 22. a4 {[%emt 0:01:23]} Rc6 {[%emt 0:04:27]} 23. Ng5 {[%emt 0:05:24]} Qd8 {[%emt 0:16:14]} 24. f4 {[%emt 0:07:49]} R8c7 {[%emt 0:00:36]} 25. Bd2 {[%emt 0:00:39]} Nc4 {[%emt 0:06:38]} 26. bxc4 {[%emt 0:05:57]} dxc4 {[%emt 0:00:02]} 27. Qg3 {[%emt 0:01:56]} b3 {[%emt 0:00:01]} 28. Bxb3 {[%emt 0:01:19]} cxb3 {[%emt 0:00:04]} 29. Qxb3 {[%emt 0:00:13]} Rc4 {[%emt 0:00:28]} 30. Qg3 {[%emt 0:02:37]} Qd5 {[%emt 0:01:03]} 31. Raa1 {[%emt 0:01:28]} Rc2 {[%emt 0:00:35]} 32. Nf3 {[%emt 0:01:25]} Rb2 {[%emt 0:02:22]} 33. Rac1 {[%emt 0:02:44]} Rxc1 {[%emt 0:06:54]} 34. Bxc1 {[%emt 0:00:27]} Rc2 {[%emt 0:00:25]} 35. f5 {[%emt 0:02:40]} exf5 {[%emt 0:01:26]} 36. Bh6 {[%emt 0:00:01]} g6 {[%emt 0:00:37]} 37. Nf4 {[%emt 0:00:08]} Qd8 {[%emt 0:02:34]} 38. e6 {[%emt 0:01:13]} Bxf3 {[%emt 0:02:13]} 39. exf7+ {[%emt 0:01:01]} Kxf7 {[%emt 0:00:01]} 40. Qxf3 {[%emt 0:00:26]} Qxd4+ {[%emt 0:00:12]} 41. Kh1 {[%emt 0:00:10]} Rc7 {[%emt 0:05:56]} 42. Qb3+ {[%emt 0:00:42]} Qc4 {[%emt 0:00:08]} 43. Qe3 {[%emt 0:00:45]} Bd6 {[%emt 0:10:54]} 44. Qe8+ {[%emt 0:00:14]} Kg8 {[%emt 0:00:00]} 45. Bxf8 {[%emt 0:00:42]} Bxf8 {[%emt 0:00:04]} 46. Qe5 {[%emt 0:00:42]} Re7 {[%emt 0:01:26]} 47. Ne6 {[%emt 0:00:16]} Qh4+ {[%emt 0:02:04]} 48. Kg1 {[%emt 0:00:01]} Kf7 {[%emt 0:00:08]} 49. hxg6+ {[%emt 0:00:43]} hxg6 {[%emt 0:00:01]} 50. Re2 {[%emt 0:01:01]} Qc4 {[%emt 0:01:19]} 51. Ng5+ {[%emt 0:00:16]} Kg8 {[%emt 0:00:24]} 52. Ne6 {[%emt 0:00:15]} Qc1+ {[%emt 0:03:27]} 53. Re1 {[%emt 0:00:15]} Qd2 {[%emt 0:00:27]} 54. Re2 {[%emt 0:00:23]} Qd3 {[%emt 0:00:11]} 55. Qf6 {[%emt 0:00:54]} Qb1+ {[%emt 0:00:58]} 56. Kf2 {[%emt 0:00:14]} Qb6+ {[%emt 0:00:05]} 57. Kf1 {[%emt 0:00:17]} Qb1+ {[%emt 0:00:39]} 58. Re1 {[%emt 0:00:08]} Qd3+ {[%emt 0:00:07]} 59. Kg1 {[%emt 0:00:19]} Rf7 {[%emt 0:01:43]} 60. Qxg6+ {[%emt 0:00:17]} Bg7 {[%emt 0:00:05]} 61. Nxg7 {[%emt 0:01:53]} Qd4+ {[%emt 0:00:02]} 62. Kf1 {[%emt 0:00:32]} Qf4+ {[%emt 0:00:19]} 63. Kg1 {[%emt 0:00:14]} 1/2-1/2

[Event "35th Roquetas Festival 2024"]
[Site "Roquetas de Mar"]
[Date "2024.01.04"]
[Round "5.1"]
[White "Grigoryan, Karen H."]
[Black "Macias Pino, Diego"]
[Result "1-0"]
[ECO "D20"]
[WhiteElo "2643"]
[BlackElo "2456"]
[Annotator "TA"]
[PlyCount "81"]
[EventDate "2024.01.02"]
[EventType "swiss"]
[EventCountry "ESP"]
[SourceTitle "playchess.com"]
[Source "ChessBase"]
[SourceQuality "1"]
[TimeControl "5400+30"]

{[%evp 9,81,47,23,36,83,58,60,51,62,60,54,31,29,39,43,39,45,46,42,26,31,21,23,28,35,30,29,29,37,36,29,28,33,40,39,28,48,50,36,47,52,64,68,27,40,12,16,17,30,12,57,75,140,150,420,420,499,492,866,864,987,980,955,930,2077,1513,2713,2061,2042,2130,1802,1702,29987,29988]} 1. d4 {[%emt 0:00:12]} d5 {[%emt 0:00:30]} 2. c4 {[%emt 0:00:08]} dxc4 {[%emt 0:00:05]} 3. e4 {[%emt 0:00:32]} b5 {[%emt 0:00:05]} 4. a4 {[%emt 0:00:10]} c6 {[%emt 0:00:03]} 5. axb5 {[%emt 0:00:03]} cxb5 {[%emt 0:00:02]} 6. Nc3 {[%emt 0:00:06] D20: Queen's Gambit Accepted: 3 e3 and 3 e4.} Qb6 {[%emt 0:00:04]} (6... a6 $14) 7. b3 {[%emt 0:01:23] White is more active. is the new trend.} e6 $1 {[%emt 0:00:59]} 8. bxc4 {[%emt 0:00:12] Strongly threatening c5. White is slightly better.} Bb4 {[%emt 0:00:57]} 9. Bd2 {[%emt 0:16:12]} bxc4 {[%emt 0:04:57]} 10. Bxc4 {[%emt 0:00:18]} Ne7 {[%emt 0:04:14]} 11. Nf3 {[%emt 0:03:16][%cal Bg1f3,Bf3e5,Be5d3,Bd3c5][%mdl 32]} O-O {[%emt 0:06:15]} 12. O-O {[%emt 0:00:19]} a5 $1 {[%emt 0:00:32]} 13. Na4 {[%emt 0:04:53]} Qc6 {[%emt 0:04:56] [#]} 14. Bd3 $146 {[%emt 0:04:53]} ({Predecessor:} 14. Rc1 Qxe4 15. Nb6 Ra7 16. Re1 Qb7 17. Nxc8 Rxc8 18. Rxe6 Rxc4 19. Rxe7 Bxe7 20. Rxc4 {½-½ Li,C (2679)-Zhou,W (2597) CHN-chT Div-A 2022 (1.4)}) 14... Ba6 {[%emt 0:06:55]} 15. Ne5 {[%emt 0:06:55]} Qd6 {[%emt 0:02:38]} 16. Be3 {[%emt 0:01:50]} Bxd3 {[%emt 0:08:26]} 17. Qxd3 {[%emt 0:00:57]} Qa6 $1 {[%emt 0:03:15]} 18. Rfc1 {[%emt 0:06:46]} Nbc6 {[%emt 0:02:27]} 19. Qxa6 {[%emt 0:02:28]} Rxa6 {[%emt 0:00:04]} 20. Nd3 {[%emt 0:00:51]} Rd8 {[%emt 0:11:32]} 21. Rc4 {[%emt 0:01:25]} Bd6 {[%emt 0:02:02]} 22. Rac1 {[%emt 0:05:18]} Nb4 {[%emt 0:03:46]} 23. Ndc5 {[%emt 0:00:10]} Ra7 {[%emt 0:01:00][%cal Ba6a7,Ba7b7,Bb7b5][%mdl 32]} 24. Nb3 {[%emt 0:01:37]} Na2 {[%emt 0:10:03]} 25. Ra1 {[%emt 0:00:59]} Nb4 {[%emt 0:00:03]} 26. g4 {[%emt 0:01:56]} Nbc6 {[%emt 0:02:09]} 27. Rac1 {[%emt 0:08:11] And now d5 would win.} Rb7 {[%emt 0:00:43]} 28. Nbc5 $36 {[%emt 0:01:21][%mdl 2048] White has some pressure.} Rb5 {[%emt 0:03:01]} 29. f4 {[%emt 0:01:23][%cal Bf2f4,Bf4f5][%mdl 32]} Bb8 {[%emt 0:07:24]} 30. f5 {[%emt 0:02:05]} e5 {[%emt 0:01:11]} ({Black should try} 30... exf5 31. gxf5 h6) 31. d5 $16 {[%emt 0:00:08]} Nb4 {[%emt 0:02:35] Black cannot hold the game after this.} (31... Nd4 $16) 32. Nc3 $18 {[%emt 0:00:56]} Rb6 {[%emt 0:01:40]} 33. Ne6 {[%emt 0:00:17][%mdl 64] Discovered Attack} Rdd6 {[%emt 0:00:03]} (33... Rxe6 $142 34. fxe6 fxe6 35. dxe6 h6) 34. Bxb6 {[%emt 0:00:29][%cal Oc3b5] Threatens to win with Nb5!} Rxb6 {[%emt 0:00:02]} 35. Na4 {[%emt 0:00:41] White threatens Rc8+ and mate.} fxe6 {[%emt 0:00:02]} 36. Nxb6 {[%emt 0:00:43]} Ba7 {[%emt 0:00:04] [#]} 37. Rc8+ $1 {[%emt 0:00:37]} Kf7 {[%emt 0:00:02]} (37... Nxc8 38. Rxc8+) 38. fxe6+ {[%emt 0:00:09]} Kg6 {[%emt 0:00:18] [#]} 39. d6 $1 {[%emt 0:00:42]} Bxb6+ {[%emt 0:00:05]} (39... Kf6 40. Kf1) 40. Kg2 {[%emt 0:00:04]} Nxc8 {[%emt 0:00:05]} 41. Rxc8 {[%emt 0:00:07] Weighted Error Value: White=0.06 (flawless) /Black=0.34} 1-0